[Event "Late-Titled-Tuesday-Blitz-January-23-2024"]
[Site "Chess.com"]
[Date "2024.01.23"]
[Round "3"]
[White "PoXerStar"]
[Black "CM_rui"]
[Result "1-0"]
[WhiteElo "2446"]
[BlackElo "2591"]
[TimeControl "180+1"]
[EndTime "14:28:09 PST"]
[Termination "PoXerStar won on time"]

1. c4 {[%clk 0:03:00]} 1... Nf6 {[%clk 0:02:59.8]} 2. g3 {[%clk 0:02:59.9]} 2...
e6 {[%clk 0:03:00.2]} 3. Bg2 {[%clk 0:02:59.9]} 3... c5 {[%clk 0:03:00.9]} 4.
Nf3 {[%clk 0:02:59.9]} 4... d5 {[%clk 0:03:01.3]} 5. cxd5 {[%clk 0:02:59.8]}
5... exd5 {[%clk 0:03:02.2]} 6. O-O {[%clk 0:03:00.2]} 6... Nc6 {[%clk
0:03:02.2]} 7. d4 {[%clk 0:03:00.8]} 7... Be7 {[%clk 0:03:02.2]} 8. Nc3 {[%clk
0:02:56.6]} 8... O-O {[%clk 0:03:02.7]} 9. dxc5 {[%clk 0:02:52.5]} 9... Bxc5
{[%clk 0:03:03.6]} 10. a3 {[%clk 0:02:52.8]} 10... Re8 {[%clk 0:03:01.9]} 11. b4
{[%clk 0:02:53.1]} 11... Bf8 {[%clk 0:02:56.9]} 12. Bb2 {[%clk 0:02:53.6]} 12...
Bg4 {[%clk 0:02:56]} 13. e3 {[%clk 0:02:41.8]} 13... Rc8 {[%clk 0:02:49.6]} 14.
Ne2 {[%clk 0:02:35.4]} 14... Ne4 {[%clk 0:02:45.6]} 15. Rc1 {[%clk 0:02:34]}
15... a5 {[%clk 0:02:39.5]} 16. b5 {[%clk 0:02:32.4]} 16... Na7 {[%clk
0:02:36.2]} 17. a4 {[%clk 0:02:12.1]} 17... Rc4 {[%clk 0:02:26.6]} 18. Nf4
{[%clk 0:01:53.8]} 18... Rxc1 {[%clk 0:01:56]} 19. Qxc1 {[%clk 0:01:54.7]} 19...
Nc8 {[%clk 0:01:49.9]} 20. Rd1 {[%clk 0:01:54.3]} 20... Nb6 {[%clk 0:01:49.3]}
21. h3 {[%clk 0:01:41.8]} 21... Be6 {[%clk 0:01:39.4]} 22. Nd4 {[%clk
0:01:20.3]} 22... Nc5 {[%clk 0:01:30.9]} 23. e4 {[%clk 0:01:11.5]} 23... Ncxa4
{[%clk 0:01:21.2]} 24. Ndxe6 {[%clk 0:01:08.7]} 24... fxe6 {[%clk 0:01:20.8]}
25. exd5 {[%clk 0:01:09.6]} 25... exd5 {[%clk 0:01:05.3]} 26. Bxd5+ {[%clk
0:00:53.4]} 26... Nxd5 {[%clk 0:01:01.3]} 27. Rxd5 {[%clk 0:00:53.3]} 27... Qe7
{[%clk 0:00:38.3]} 28. Re5 {[%clk 0:00:53]} 28... Qf7 {[%clk 0:00:16.1]} 29.
Rxe8 {[%clk 0:00:52.7]} 29... Nxb2 {[%clk 0:00:16.8]} 30. Qc8 {[%clk 0:00:46.7]}
30... Nd1 {[%clk 0:00:13.1]} 31. Qd8 {[%clk 0:00:19.1]} 1-0

[Event "Late-Titled-Tuesday-Blitz-January-23-2024"]
[Site "Chess.com"]
[Date "2024.01.23"]
[Round "3"]
[White "szachmistrz2500"]
[Black "ansko1999"]
[Result "1-0"]
[WhiteElo "2503"]
[BlackElo "2699"]
[TimeControl "180+1"]
[EndTime "14:28:10 PST"]
[Termination "szachmistrz2500 won on time"]

1. e4 {[%clk 0:02:57.2]} 1... e5 {[%clk 0:02:59.9]} 2. Nf3 {[%clk 0:02:55.8]}
2... Nc6 {[%clk 0:03:00.1]} 3. d4 {[%clk 0:02:53.2]} 3... exd4 {[%clk 0:03:00]}
4. Nxd4 {[%clk 0:02:53.6]} 4... Nf6 {[%clk 0:02:59.5]} 5. Nxc6 {[%clk
0:02:52.1]} 5... bxc6 {[%clk 0:02:59.9]} 6. Nd2 {[%clk 0:02:50.2]} 6... Bc5
{[%clk 0:02:54.8]} 7. Bd3 {[%clk 0:02:49.2]} 7... O-O {[%clk 0:02:50.2]} 8. O-O
{[%clk 0:02:48.7]} 8... Re8 {[%clk 0:02:47.5]} 9. Nb3 {[%clk 0:02:39.6]} 9...
Bb6 {[%clk 0:02:39.7]} 10. Re1 {[%clk 0:02:39.3]} 10... d6 {[%clk 0:02:29]} 11.
h3 {[%clk 0:02:38.9]} 11... h6 {[%clk 0:02:28.3]} 12. c4 {[%clk 0:02:37.8]}
12... a5 {[%clk 0:02:16.4]} 13. a4 {[%clk 0:02:25.7]} 13... Nd7 {[%clk 0:01:58]}
14. Be3 {[%clk 0:02:01.1]} 14... Bxe3 {[%clk 0:01:50.5]} 15. Rxe3 {[%clk
0:02:01]} 15... c5 {[%clk 0:01:50.1]} 16. Qd2 {[%clk 0:01:51.5]} 16... c6 {[%clk
0:01:44]} 17. Rg3 {[%clk 0:01:47.1]} 17... Kh8 {[%clk 0:01:38.3]} 18. f4 {[%clk
0:01:45.3]} 18... Qh4 {[%clk 0:01:23.3]} 19. Rg4 {[%clk 0:01:42.4]} 19... Qd8
{[%clk 0:01:24]} 20. Re1 {[%clk 0:01:33.4]} 20... Nf6 {[%clk 0:01:20.4]} 21. Rg3
{[%clk 0:01:33.3]} 21... Qc7 {[%clk 0:01:02.1]} 22. Qc3 {[%clk 0:01:32.1]} 22...
Nh5 {[%clk 0:00:53.5]} 23. Rf3 {[%clk 0:01:25.7]} 23... Nf6 {[%clk 0:00:38.5]}
24. e5 {[%clk 0:01:24]} 24... Ng8 {[%clk 0:00:17.7]} 25. Rg3 {[%clk 0:01:16.1]}
25... dxe5 {[%clk 0:00:16.7]} 26. fxe5 {[%clk 0:01:13.4]} 26... Be6 {[%clk
0:00:15.4]} 27. Nxc5 {[%clk 0:01:12.9]} 27... Qb6 {[%clk 0:00:15.8]} 28. Qd4
{[%clk 0:01:07.7]} 28... Rad8 {[%clk 0:00:15.5]} 29. Qf2 {[%clk 0:01:05.2]}
29... Ne7 {[%clk 0:00:11.7]} 30. Rxg7 {[%clk 0:00:55.9]} 30... Kxg7 {[%clk
0:00:08.2]} 31. Nxe6+ {[%clk 0:00:55.5]} 31... fxe6 {[%clk 0:00:05.5]} 32. Qxb6
{[%clk 0:00:55.4]} 32... Rxd3 {[%clk 0:00:06.2]} 33. Qc7 {[%clk 0:00:38.8]}
33... Kg8 {[%clk 0:00:03.5]} 34. Rf1 {[%clk 0:00:37.1]} 34... Nf5 {[%clk
0:00:03.1]} 35. Qxc6 {[%clk 0:00:36]} 35... Re7 {[%clk 0:00:02.7]} 36. Qc5
{[%clk 0:00:31.1]} 36... Rg7 {[%clk 0:00:01.7]} 37. Qc8+ {[%clk 0:00:27.6]} 1-0

[Event "Late-Titled-Tuesday-Blitz-January-23-2024"]
[Site "Chess.com"]
[Date "2024.01.23"]
[Round "3"]
[White "chessflav"]
[Black "xakevicius91"]
[Result "1/2-1/2"]
[WhiteElo "2320"]
[BlackElo "2549"]
[TimeControl "180+1"]
[EndTime "14:28:10 PST"]
[Termination "Game drawn by repetition"]

1. e4 {[%clk 0:02:58.8]} 1... c5 {[%clk 0:02:59.9]} 2. Nc3 {[%clk 0:02:59.1]}
2... e6 {[%clk 0:02:59.1]} 3. g3 {[%clk 0:03:00]} 3... a6 {[%clk 0:02:59.3]} 4.
Bg2 {[%clk 0:03:00]} 4... b5 {[%clk 0:03:00.2]} 5. d3 {[%clk 0:03:00.2]} 5...
Bb7 {[%clk 0:03:00.8]} 6. f4 {[%clk 0:02:59.4]} 6... d5 {[%clk 0:02:58.9]} 7.
Qe2 {[%clk 0:02:47]} 7... b4 {[%clk 0:02:59]} 8. Nb1 {[%clk 0:02:46.7]} 8... Nf6
{[%clk 0:02:59.4]} 9. Nd2 {[%clk 0:02:45.4]} 9... Be7 {[%clk 0:02:58.8]} 10.
Ngf3 {[%clk 0:02:43.9]} 10... Nc6 {[%clk 0:02:57.9]} 11. O-O {[%clk 0:02:43.5]}
11... Qb6 {[%clk 0:02:56.5]} 12. Kh1 {[%clk 0:02:42.6]} 12... a5 {[%clk
0:02:56]} 13. h3 {[%clk 0:02:40.9]} 13... Rd8 {[%clk 0:02:47]} 14. e5 {[%clk
0:02:40.7]} 14... Nd7 {[%clk 0:02:47]} 15. g4 {[%clk 0:02:38.7]} 15... g6 {[%clk
0:02:46.8]} 16. Re1 {[%clk 0:02:30.8]} 16... h5 {[%clk 0:02:46]} 17. Nh2 {[%clk
0:01:58.9]} 17... Nd4 {[%clk 0:02:41]} 18. Qd1 {[%clk 0:01:57.9]} 18... Rc8
{[%clk 0:02:29.3]} 19. c3 {[%clk 0:01:57.6]} 19... Nb5 {[%clk 0:02:27.2]} 20. c4
{[%clk 0:01:52]} 20... Nd4 {[%clk 0:02:12.1]} 21. Ndf3 {[%clk 0:01:46.1]} 21...
hxg4 {[%clk 0:02:11.4]} 22. hxg4 {[%clk 0:01:46]} 22... Nxf3 {[%clk 0:02:09.3]}
23. Bxf3 {[%clk 0:01:42.7]} 23... dxc4 {[%clk 0:02:05.6]} 24. dxc4 {[%clk
0:01:42]} 24... Bh4 {[%clk 0:02:03.1]} 25. Rg1 {[%clk 0:01:29.4]} 25... Rd8
{[%clk 0:02:00.4]} 26. Qe2 {[%clk 0:01:21.2]} 26... Nb8 {[%clk 0:01:52.4]} 27.
Kg2 {[%clk 0:01:12.6]} 27... Be7 {[%clk 0:01:51.1]} 28. Be3 {[%clk 0:01:09.1]}
28... Nc6 {[%clk 0:01:50.9]} 29. Rh1 {[%clk 0:00:57.6]} 29... Kd7 {[%clk
0:01:47.1]} 30. Nf1 {[%clk 0:00:42.1]} 30... Kc7 {[%clk 0:01:43.7]} 31. Ng3
{[%clk 0:00:42.6]} 31... Bh4 {[%clk 0:01:36.1]} 32. Ne4 {[%clk 0:00:41.4]} 32...
Be7 {[%clk 0:01:34.2]} 33. Rxh8 {[%clk 0:00:40.4]} 33... Rxh8 {[%clk 0:01:33.6]}
34. g5 {[%clk 0:00:39.9]} 34... a4 {[%clk 0:01:27.5]} 35. Rd1 {[%clk 0:00:38.4]}
35... Rd8 {[%clk 0:01:26.4]} 36. Rxd8 {[%clk 0:00:37.3]} 36... Kxd8 {[%clk
0:01:27.3]} 37. Qd1+ {[%clk 0:00:38]} 37... Nd4 {[%clk 0:01:21.6]} 38. Bxd4
{[%clk 0:00:37.2]} 38... cxd4 {[%clk 0:01:22.5]} 39. Qxa4 {[%clk 0:00:37.5]}
39... Bc6 {[%clk 0:01:16.8]} 40. Qd1 {[%clk 0:00:31.3]} 40... Bc5 {[%clk
0:01:15.7]} 41. Qd3 {[%clk 0:00:31]} 41... Bxe4 {[%clk 0:01:13.6]} 42. Qxe4
{[%clk 0:00:30.3]} 42... Qc7 {[%clk 0:01:06.2]} 43. Kf1 {[%clk 0:00:29.3]} 43...
Qd7 {[%clk 0:01:05.3]} 44. Ke2 {[%clk 0:00:24.9]} 44... Qa4 {[%clk 0:01:01.7]}
45. Qa8+ {[%clk 0:00:25.2]} 45... Qxa8 {[%clk 0:01:01.1]} 46. Bxa8 {[%clk
0:00:26.1]} 46... Kd7 {[%clk 0:00:58.1]} 47. Kd3 {[%clk 0:00:25.6]} 47... Kc7
{[%clk 0:00:56.8]} 48. Be4 {[%clk 0:00:23.9]} 48... Kb6 {[%clk 0:00:56.4]} 49.
Bf3 {[%clk 0:00:21.1]} 49... Kc7 {[%clk 0:00:56.2]} 50. Be4 {[%clk 0:00:19.8]}
50... Kb6 {[%clk 0:00:56.6]} 51. Bf3 {[%clk 0:00:15.4]} 51... Kc7 {[%clk
0:00:53.7]} 52. Be4 {[%clk 0:00:15.6]} 1/2-1/2

[Event "Late-Titled-Tuesday-Blitz-January-23-2024"]
[Site "Chess.com"]
[Date "2024.01.23"]
[Round "3"]
[White "reevecanada"]
[Black "GMJustin"]
[Result "1-0"]
[WhiteElo "2641"]
[BlackElo "2338"]
[TimeControl "180+1"]
[EndTime "14:28:11 PST"]
[Termination "reevecanada won on time"]

1. e4 {[%clk 0:03:00.9]} 1... c5 {[%clk 0:02:41.9]} 2. Nf3 {[%clk 0:02:55.7]}
2... e6 {[%clk 0:02:39.4]} 3. b3 {[%clk 0:02:53.4]} 3... Nc6 {[%clk 0:02:29.3]}
4. Bb2 {[%clk 0:02:46.6]} 4... d5 {[%clk 0:02:24.8]} 5. exd5 {[%clk 0:02:43.5]}
5... exd5 {[%clk 0:02:23.7]} 6. Bb5 {[%clk 0:02:42.6]} 6... Nf6 {[%clk
0:02:17.3]} 7. O-O {[%clk 0:02:40.3]} 7... Be7 {[%clk 0:02:12.6]} 8. d4 {[%clk
0:02:33.7]} 8... O-O {[%clk 0:02:09.9]} 9. Re1 {[%clk 0:02:32.7]} 9... Ne4
{[%clk 0:02:02.4]} 10. Nbd2 {[%clk 0:02:28.7]} 10... Bf5 {[%clk 0:01:52.6]} 11.
Bd3 {[%clk 0:02:10.5]} 11... Nxd2 {[%clk 0:01:36.2]} 12. Qxd2 {[%clk 0:01:46.2]}
12... Bxd3 {[%clk 0:01:32.3]} 13. Qxd3 {[%clk 0:01:47.1]} 13... Bf6 {[%clk
0:01:28.2]} 14. Rad1 {[%clk 0:01:44.1]} 14... Qa5 {[%clk 0:01:17.6]} 15. Bc3
{[%clk 0:01:41.4]} 15... Nb4 {[%clk 0:01:08.9]} 16. Qd2 {[%clk 0:01:37.6]} 16...
Qb5 {[%clk 0:00:21.4]} 17. dxc5 {[%clk 0:00:50.8]} 17... Bxc3 {[%clk 0:00:16.2]}
18. Qxc3 {[%clk 0:00:49.8]} 18... Nxa2 {[%clk 0:00:16.3]} 19. Qb2 {[%clk
0:00:49.4]} 19... Nb4 {[%clk 0:00:14.8]} 20. Nd4 {[%clk 0:00:49.3]} 20... Qxc5
{[%clk 0:00:13.8]} 21. Nf5 {[%clk 0:00:48.4]} 21... f6 {[%clk 0:00:11.6]} 22.
Ne7+ {[%clk 0:00:44.4]} 22... Kh8 {[%clk 0:00:10.2]} 23. c3 {[%clk 0:00:44.1]}
23... Nc6 {[%clk 0:00:05.2]} 24. Rxd5 {[%clk 0:00:41.5]} 24... Qb6 {[%clk
0:00:02.6]} 25. Rd7 {[%clk 0:00:41.1]} 25... Rfe8 {[%clk 0:00:01.8]} 26. b4
{[%clk 0:00:32.8]} 26... Rad8 {[%clk 0:00:01.8]} 27. Qe2 {[%clk 0:00:22.1]}
27... Rxd7 {[%clk 0:00:01.1]} 28. Ng6+ {[%clk 0:00:21.5]} 28... hxg6 {[%clk
0:00:01.2]} 29. Qxe8+ {[%clk 0:00:21.7]} 29... Kh7 {[%clk 0:00:01.6]} 30. Qxd7
{[%clk 0:00:22]} 30... Ne5 {[%clk 0:00:02]} 31. Qh3+ {[%clk 0:00:20.5]} 31...
Kg8 {[%clk 0:00:02.1]} 32. Qe3 {[%clk 0:00:21.1]} 1-0

[Event "Late-Titled-Tuesday-Blitz-January-23-2024"]
[Site "Chess.com"]
[Date "2024.01.23"]
[Round "3"]
[White "OneTrickPony_82"]
[Black "familijatop71"]
[Result "1-0"]
[WhiteElo "2488"]
[BlackElo "2255"]
[TimeControl "180+1"]
[EndTime "14:28:13 PST"]
[Termination "OneTrickPony_82 won by checkmate"]

1. d4 {[%clk 0:03:00.9]} 1... d5 {[%clk 0:02:59.9]} 2. c4 {[%clk 0:03:01]} 2...
e6 {[%clk 0:03:00.2]} 3. Nf3 {[%clk 0:03:01.4]} 3... Nf6 {[%clk 0:03:00.7]} 4.
Nc3 {[%clk 0:03:01.8]} 4... Be7 {[%clk 0:03:01.2]} 5. g3 {[%clk 0:03:01.9]} 5...
O-O {[%clk 0:03:01.3]} 6. Bg2 {[%clk 0:03:02.1]} 6... dxc4 {[%clk 0:03:00.1]} 7.
Ne5 {[%clk 0:03:02]} 7... c5 {[%clk 0:02:57.5]} 8. dxc5 {[%clk 0:03:01.9]} 8...
Qc7 {[%clk 0:02:57.3]} 9. Nxc4 {[%clk 0:02:53.3]} 9... Rd8 {[%clk 0:02:56.4]}
10. Qb3 {[%clk 0:02:49.6]} 10... Bxc5 {[%clk 0:02:37.5]} 11. O-O {[%clk
0:02:47.2]} 11... Nc6 {[%clk 0:02:36.9]} 12. Bf4 {[%clk 0:02:32.6]} 12... e5
{[%clk 0:02:34]} 13. Bg5 {[%clk 0:02:29.8]} 13... Nd4 {[%clk 0:02:30.9]} 14. Nb5
{[%clk 0:02:09.9]} 14... Nxb5 {[%clk 0:01:49.5]} 15. Qxb5 {[%clk 0:02:09.3]}
15... a6 {[%clk 0:01:43.1]} 16. Qa5 {[%clk 0:01:59.8]} 16... b6 {[%clk
0:01:21.7]} 17. Qc3 {[%clk 0:01:49.1]} 17... Bd4 {[%clk 0:01:16]} 18. Qc1 {[%clk
0:01:38.6]} 18... Bb7 {[%clk 0:01:11.8]} 19. Bxb7 {[%clk 0:01:35.2]} 19... Qxb7
{[%clk 0:01:10.8]} 20. Bxf6 {[%clk 0:01:33.6]} 20... gxf6 {[%clk 0:01:10.7]} 21.
Qh6 {[%clk 0:01:19.2]} 21... Qe7 {[%clk 0:00:55.1]} 22. Ne3 {[%clk 0:00:57.9]}
22... Bxe3 {[%clk 0:00:51.6]} 23. fxe3 {[%clk 0:00:58]} 23... Rd6 {[%clk
0:00:52]} 24. Rf5 {[%clk 0:00:56.4]} 24... Qf8 {[%clk 0:00:44]} 25. Qh4 {[%clk
0:00:52.8]} 25... Qg7 {[%clk 0:00:41]} 26. Raf1 {[%clk 0:00:51.8]} 26... Rad8
{[%clk 0:00:33.8]} 27. Rxf6 {[%clk 0:00:48.7]} 27... Rd1 {[%clk 0:00:26.1]} 28.
Rxb6 {[%clk 0:00:20.6]} 28... Rxf1+ {[%clk 0:00:25.8]} 29. Kxf1 {[%clk 0:00:21]}
29... Rd1+ {[%clk 0:00:20.7]} 30. Kf2 {[%clk 0:00:21]} 30... h6 {[%clk
0:00:04.2]} 31. Rb8+ {[%clk 0:00:18.8]} 31... Kh7 {[%clk 0:00:04.4]} 32. Qe4+
{[%clk 0:00:18.7]} 32... Qg6 {[%clk 0:00:02.8]} 33. Qxe5 {[%clk 0:00:17.6]}
33... Rd2 {[%clk 0:00:01.2]} 34. Rh8# {[%clk 0:00:16.3]} 1-0

[Event "Late-Titled-Tuesday-Blitz-January-23-2024"]
[Site "Chess.com"]
[Date "2024.01.23"]
[Round "3"]
[White "FabianoCaruana"]
[Black "GMAkobianSTL"]
[Result "1-0"]
[WhiteElo "3035"]
[BlackElo "2757"]
[TimeControl "180+1"]
[EndTime "14:28:15 PST"]
[Termination "FabianoCaruana won on time"]

1. d4 {[%clk 0:03:00.9]} 1... e6 {[%clk 0:02:51.6]} 2. c4 {[%clk 0:03:00.7]}
2... f5 {[%clk 0:02:50.5]} 3. Nc3 {[%clk 0:02:59.6]} 3... Bb4 {[%clk 0:02:49.6]}
4. Qb3 {[%clk 0:02:58.1]} 4... Bxc3+ {[%clk 0:02:47.6]} 5. Qxc3 {[%clk 0:02:59]}
5... Nf6 {[%clk 0:02:47.3]} 6. Nf3 {[%clk 0:02:57]} 6... b6 {[%clk 0:02:47.4]}
7. Bf4 {[%clk 0:02:56.8]} 7... Bb7 {[%clk 0:02:47.4]} 8. e3 {[%clk 0:02:57.1]}
8... O-O {[%clk 0:02:47.4]} 9. Be2 {[%clk 0:02:57.1]} 9... d6 {[%clk 0:02:47.4]}
10. O-O {[%clk 0:02:53.8]} 10... Ne4 {[%clk 0:02:46.4]} 11. Qc2 {[%clk
0:02:53.5]} 11... Nd7 {[%clk 0:02:45.5]} 12. Rad1 {[%clk 0:02:50.7]} 12... Qe7
{[%clk 0:02:45]} 13. h3 {[%clk 0:02:48.7]} 13... g5 {[%clk 0:02:42.9]} 14. Bh2
{[%clk 0:02:48.8]} 14... h5 {[%clk 0:02:42.9]} 15. d5 {[%clk 0:02:44.4]} 15...
e5 {[%clk 0:02:33.9]} 16. Nd2 {[%clk 0:02:43.9]} 16... Nxd2 {[%clk 0:02:30.2]}
17. Qxd2 {[%clk 0:02:44.8]} 17... Nf6 {[%clk 0:02:12]} 18. f3 {[%clk 0:02:43.5]}
18... h4 {[%clk 0:01:52.8]} 19. e4 {[%clk 0:02:40.4]} 19... Nh5 {[%clk
0:01:40.4]} 20. exf5 {[%clk 0:02:39.4]} 20... Bc8 {[%clk 0:01:31.9]} 21. Bd3
{[%clk 0:02:39]} 21... Bxf5 {[%clk 0:01:30.6]} 22. Bxf5 {[%clk 0:02:39]} 22...
Rxf5 {[%clk 0:01:30.4]} 23. Rfe1 {[%clk 0:02:39.5]} 23... Qf6 {[%clk 0:01:23.2]}
24. Re4 {[%clk 0:02:37.6]} 24... Nf4 {[%clk 0:01:22.1]} 25. b4 {[%clk
0:02:30.3]} 25... Rf8 {[%clk 0:01:15.3]} 26. Bxf4 {[%clk 0:02:19.4]} 26... gxf4
{[%clk 0:01:12.5]} 27. c5 {[%clk 0:02:19.7]} 27... Kh8 {[%clk 0:01:09.8]} 28.
cxd6 {[%clk 0:02:18.4]} 28... cxd6 {[%clk 0:01:09.5]} 29. Rc1 {[%clk 0:02:14.4]}
29... Rg8 {[%clk 0:01:08.1]} 30. Qe1 {[%clk 0:02:07.5]} 30... Rg7 {[%clk
0:00:59.6]} 31. Rc8+ {[%clk 0:01:55.9]} 31... Kh7 {[%clk 0:00:59]} 32. Rec4
{[%clk 0:01:56]} 32... Qh6 {[%clk 0:00:32.5]} 33. R4c7 {[%clk 0:01:50.1]} 33...
Rg5 {[%clk 0:00:20]} 34. Qe4+ {[%clk 0:01:48.6]} 34... Qg6 {[%clk 0:00:15.6]}
35. Rxg7+ {[%clk 0:01:45.7]} 35... Kxg7 {[%clk 0:00:15.5]} 36. Qxg6+ {[%clk
0:01:38.8]} 36... Rxg6 {[%clk 0:00:10.5]} 37. Kf2 {[%clk 0:01:38.1]} 37... Rf6
{[%clk 0:00:03.7]} 38. b5 {[%clk 0:01:29.4]} 38... Kg6 {[%clk 0:00:03.4]} 39. a4
{[%clk 0:01:09.3]} 39... Kf5 {[%clk 0:00:03.1]} 40. Rd8 {[%clk 0:01:09.5]} 40...
Rg6 {[%clk 0:00:02.9]} 41. Rd7 {[%clk 0:01:03.2]} 41... e4 {[%clk 0:00:02.8]}
42. fxe4+ {[%clk 0:01:03.4]} 42... Kxe4 {[%clk 0:00:03.1]} 43. Rxa7 {[%clk
0:01:02.3]} 43... Kxd5 {[%clk 0:00:03.4]} 44. Rf7 {[%clk 0:01:02.5]} 44... Kc5
{[%clk 0:00:02.1]} 45. Rxf4 {[%clk 0:01:02.4]} 45... d5 {[%clk 0:00:02.6]} 46.
Rxh4 {[%clk 0:00:59]} 46... d4 {[%clk 0:00:02.7]} 47. Rh8 {[%clk 0:00:49.6]}
47... Re6 {[%clk 0:00:01.3]} 48. Rd8 {[%clk 0:00:40.1]} 48... Kc4 {[%clk
0:00:01.2]} 49. g4 {[%clk 0:00:40.4]} 1-0

[Event "Late-Titled-Tuesday-Blitz-January-23-2024"]
[Site "Chess.com"]
[Date "2024.01.23"]
[Round "3"]
[White "sergoy"]
[Black "AlexPapasimakopoulos"]
[Result "1-0"]
[WhiteElo "3030"]
[BlackElo "2751"]
[TimeControl "180+1"]
[EndTime "14:28:15 PST"]
[Termination "sergoy won by resignation"]

1. d4 {[%clk 0:03:00.9]} 1... d5 {[%clk 0:02:59.2]} 2. c4 {[%clk 0:03:01.1]}
2... e6 {[%clk 0:02:59.5]} 3. Nf3 {[%clk 0:03:01.6]} 3... a6 {[%clk 0:02:59.9]}
4. cxd5 {[%clk 0:03:01.3]} 4... exd5 {[%clk 0:02:57.4]} 5. Nc3 {[%clk 0:03:02]}
5... c6 {[%clk 0:02:57.7]} 6. Bf4 {[%clk 0:03:00.5]} 6... Bd6 {[%clk 0:02:58.2]}
7. e3 {[%clk 0:02:55.5]} 7... Bxf4 {[%clk 0:02:58.1]} 8. exf4 {[%clk 0:02:55.9]}
8... Bg4 {[%clk 0:02:58.8]} 9. h3 {[%clk 0:02:46.9]} 9... Bxf3 {[%clk
0:02:58.7]} 10. Qxf3 {[%clk 0:02:47.8]} 10... Nf6 {[%clk 0:02:53.4]} 11. Bd3
{[%clk 0:02:42.7]} 11... Qe7+ {[%clk 0:02:52.4]} 12. Qe3 {[%clk 0:02:42.4]}
12... Qxe3+ {[%clk 0:02:37.6]} 13. fxe3 {[%clk 0:02:43.3]} 13... Nbd7 {[%clk
0:02:38.1]} 14. g4 {[%clk 0:02:43.4]} 14... O-O {[%clk 0:02:33.1]} 15. g5 {[%clk
0:02:42.7]} 15... Ne8 {[%clk 0:02:33.6]} 16. Kf2 {[%clk 0:02:37.7]} 16... Nd6
{[%clk 0:02:33.8]} 17. Kf3 {[%clk 0:02:38.3]} 17... Rae8 {[%clk 0:02:28.1]} 18.
Rae1 {[%clk 0:02:37.5]} 18... f5 {[%clk 0:02:25]} 19. h4 {[%clk 0:02:31.8]}
19... Re7 {[%clk 0:02:11.5]} 20. h5 {[%clk 0:02:30.2]} 20... Rfe8 {[%clk
0:02:11.9]} 21. b3 {[%clk 0:02:27.9]} 21... Kf8 {[%clk 0:02:08.1]} 22. Kf2
{[%clk 0:02:27.5]} 22... Rc8 {[%clk 0:02:02.8]} 23. Ne2 {[%clk 0:02:23.2]} 23...
Ne4+ {[%clk 0:01:58.8]} 24. Bxe4 {[%clk 0:02:23.4]} 24... fxe4 {[%clk
0:01:55.8]} 25. Kg3 {[%clk 0:02:04.1]} 25... Rf7 {[%clk 0:01:51.3]} 26. Kg4
{[%clk 0:01:52.8]} 26... Ke7 {[%clk 0:01:50.5]} 27. f5 {[%clk 0:01:53.3]} 27...
h6 {[%clk 0:01:47.9]} 28. Nf4 {[%clk 0:01:50.9]} 28... hxg5 {[%clk 0:01:48.1]}
29. Kxg5 {[%clk 0:01:51.3]} 29... Rf6 {[%clk 0:01:44.6]} 30. Reg1 {[%clk
0:01:45.6]} 30... Kd6 {[%clk 0:01:37.7]} 31. Ne6 {[%clk 0:01:42]} 31... Rg8
{[%clk 0:01:30.3]} 32. Kf4 {[%clk 0:01:40.1]} 32... Rf7 {[%clk 0:01:20.9]} 33.
h6 {[%clk 0:01:37.2]} 33... g6 {[%clk 0:01:20.5]} 34. Rg5 {[%clk 0:01:30.1]}
34... Rxf5+ {[%clk 0:01:10.2]} 35. Rxf5 {[%clk 0:01:28.1]} 35... gxf5 {[%clk
0:01:11.1]} 36. h7 {[%clk 0:01:24.6]} 36... Rh8 {[%clk 0:01:11.4]} 37. Kxf5
{[%clk 0:01:24.3]} 37... b6 {[%clk 0:01:06.7]} 38. Rh6 {[%clk 0:01:16.3]} 38...
Ke7 {[%clk 0:01:00.3]} 39. Ng5 {[%clk 0:01:09.4]} 39... c5 {[%clk 0:00:46.8]}
40. Re6+ {[%clk 0:01:04]} 40... Kf8 {[%clk 0:00:47.1]} 41. Rd6 {[%clk
0:01:04.3]} 41... Ke7 {[%clk 0:00:46.2]} 42. Rxd5 {[%clk 0:01:01.9]} 42... cxd4
{[%clk 0:00:46.2]} 43. Rxd4 {[%clk 0:00:54.6]} 43... Nf8 {[%clk 0:00:46.5]} 44.
Rc4 {[%clk 0:00:51.8]} 44... Kd7 {[%clk 0:00:42.2]} 45. Rd4+ {[%clk 0:00:49.7]}
45... Kc6 {[%clk 0:00:40.2]} 46. Rc4+ {[%clk 0:00:31]} 46... Kd7 {[%clk
0:00:39]} 47. Rd4+ {[%clk 0:00:29.6]} 47... Kc6 {[%clk 0:00:39.5]} 48. Rd8
{[%clk 0:00:28.2]} 48... Rxh7 {[%clk 0:00:34.9]} 49. Nxh7 {[%clk 0:00:26.1]}
49... Nxh7 {[%clk 0:00:35.7]} 50. Rh8 {[%clk 0:00:26]} 1-0